{"text_format":"3","workbook":"xlsx","n_sheets":6,"sheets":["Fragebogen","Hilfsblatt Verkaufskosten","Berechnungsgrundlagen","Zusammenfassung der Einzelfälle","Aufschub Wertzuwachs","Gewinnarten"],"not_rendered":{"images":2,"macros":1,"defined_names":5,"comments":1},"read":"whole","date_system":"1900"}

{"sheet":"Fragebogen","index":0,"n_rows":355,"n_cols":20,"rows_kept":355,"merged":[[3,11,3,13],[4,7,4,13],[5,7,5,13],[6,7,6,13],[7,7,7,13],[8,7,8,13],[67,7,67,9],[67,10,67,11],[70,14,74,15],[100,9,100,11],[100,12,100,15],[101,2,101,6],[101,10,101,11],[102,2,102,6],[102,10,102,11],[104,12,104,13],[104,14,104,15],[114,9,114,11],[114,12,114,15],[115,2,115,8],[115,10,115,11],[116,2,116,8],[116,10,116,11],[118,12,118,13],[118,14,118,15],[133,10,133,11],[133,12,133,13],[133,14,133,15],[134,2,134,5],[134,10,134,11],[135,2,135,5],[135,10,135,11],[137,12,137,13],[137,14,137,15],[147,10,147,11],[147,12,147,13],[147,14,147,15],[148,2,148,5],[148,10,148,11],[149,2,149,5],[149,10,149,11],[151,12,151,13],[151,14,151,15],[237,5,237,10],[242,5,242,10],[271,4,271,15],[272,0,272,15],[273,0,273,15],[274,0,274,15],[275,0,275,15]]}
["Fragebogen",{"$nulls":16},"Hinweis: damit die Berechnung funktionieren, sind die Makros zu aktivieren"]
["Kapitalgewinne Landwirtschaft",{"$nulls":12},"Jahr",null,{"$f":"IF(N49=\"\",IF(K102=\"\",IF(K116=\"\",IF(K135=\"\",IF(K149=\"\",\"\",YEAR(K149)),YEAR(K135)),YEAR(K116)),YEAR(K102)),YEAR(N49))","v":""},null,"und das Add-In \"Analyse-Funktionen\" zu aktivieren (--> Extras --> Add-Ins)"]
["gültig ab 2011"]
[{"$nulls":7},"Adressnummer:",{"$nulls":9},"Anleitung"]
[{"$nulls":18},"Felder zum Ausfüllen"]
[{"$nulls":18},"Felder werden automatisch ausgefüllt, können aber "]
[{"$nulls":18},"überschrieben werden"]
[]
[]
[]
[]
[]
["1.","Allgemeine Angaben",{"$nulls":15},"Hilfsberechnungen und Informationen (werden nicht gedruckt)"]
[]
[null,"Grund für die Ermittlung eines Kapitalgewinns"]
[null,null,"Aufgabe der selbstständigen Erwerbstätigkeit",{"$nulls":14},{"$f":"IF(T16=FALSE,\"Nein\",\"Ja\")","v":"Nein"},"Aufgabe selbst. Tätigkeit --> ist zu überprüfen",false]
[{"$nulls":4},"nach Vollendung des 55. Altersjahrs",{"$nulls":12},{"$f":"IF(T17=FALSE,\"Nein\",\"Ja\")","v":"Nein"},"55. Altersjahr vollendet --> ist zu überprüfen",false]
[{"$nulls":4},"infolge Invalidität",{"$nulls":12},{"$f":"IF(T18=FALSE,\"Nein\",\"Ja\")","v":"Nein"},"Invalidität --> ist zu überprüfen",false]
[{"$nulls":4},"aus anderen Gründen"]
[null,null,"Abrechnung nach einem Steueraufschub (Revers)"]
[null,null,"Steuernachfolge bei Erbgang"]
[null,null,"Überführung von Geschäftsvermögen ins Privatvermögen"]
[null,null,"Austritt aus einer Kollektiv-, Kommandit- oder einfachen Gesellschaft"]
[]
[null,null,"es handelt sich um eine Verpachtung eines Geschäftsbetriebes ohne Überführung ins Privatvermögen ",{"$nulls":14},{"$f":"IF(T25=FALSE,\"Nein\",\"Ja\")","v":"Nein"},"Verpachtung ohne Überführung § 32a Abs. 2 StG; Art. 18a Abs. 2 DBG",false]
[null,null,"nach § 32a Abs. 2 StG; Art. 18a Abs. 2 DBG",{"$nulls":8},"è Pachtvertrag beilegen"]
[]
[null,null,"es handelt sich um eine Hofübergabe nach bäuerlichem Bodenrecht:",{"$nulls":8},"erfolgte die Übergabe zu Buchwerten?",{"$nulls":5},{"$f":"IF(T28=FALSE,\"Nein\",\"Ja\")","v":"Nein"},"Hofübergabe nach BGBB",false]
[null,null,"Ü Detaillierte Angaben unter Ziffer 3 des Fragebogens",{"$nulls":14},{"$f":"IF(T29=1,\"Ja\",\"Nein\")","v":"Nein"},"Buchwertsübergabe",2]
[]
[null,null,"Antrag auf Steueraufschub für den Wertzuwachs von Liegenschaften des Anlagevermögens",{"$nulls":14},{"$f":"IF(T31=FALSE,\"Nein\",\"Ja\")","v":"Nein"},"Steueraufschub auf dem Wertzuwachs §32a StG; Art. 18a DBG",false]
[null,null,"(§ 32a StG; Art. 18a DBG)"]
[null,null,"Soll der Antrag auf Steueraufschub für den Wertzuwachs nur entweder die Kantons- oder die Direkte Bundessteuer "]
[null,null,"betreffen, ist dies bei den Bemerkungen anzumerken. Die Berechnung wird durch das Steueramt korrigiert."]
[null,null,"Ü Detaillierte Angaben unter Ziffer 4b des Fragebogens"]
[null,null,"davon ausgenommen sind land- und forstwirtschaftliche Grundstücke gemäss § 27 Abs. 4 StG"]
[]
[null,null,"Antrag auf Steueraufschub auf den wiedereingebrachten Abschreibungen von Liegenschaften bei Generationenwechsel",{"$nulls":14},{"$f":"IF(T38=FALSE,\"Nein\",\"Ja\")","v":"Nein"},"Steueraufschub auf den wiedereingebrachten Abschreibungen § 23 StG",false]
[null,null,"nach § 23 StG (nur Kantonssteuer; Abrechnung bei der direkten Bundessteuer). Die Liegenschaft verbleibt bei der"]
[null,null,"Kantons- und Gemeindesteuer im Geschäftsvermögen. Eine spätere Privilegierung nach § 45 Abs. 1 lit. f StG ist nicht"]
[null,null,"mehr möglich. Für die Geschäftsliegenschaft sind weiterhin Aufzeichnungen einzureichen."]
[null,null,"Ü Detaillierte Angaben unter Ziffer 3b und 5 des Fragebogens"]
[]
[null,"Sofern die Aufgabe der selbstständigen Erwerbstätigkeit nach Vollendung des 55. Altersjahrs, wegen Invalidität oder",{"$nulls":15},65,"Rentenanlter (zur Zeit: Männer 65 Jährig / Frauen 64 Jährig)"]
[null,"nach einem Erbgang erfolgte, in welchem der Erblasser zum Zeitpunkt des Todes die Voraussetzungen für die ",{"$nulls":15},{"$f":"IF(R51=\"\",\"Nein\",IF(R51<R44,\"Nein\",\"Ja\"))","v":"Nein"},"zum Liquidationszeitpunkt im Rentenalter"]
[null,"privilegierte Liquidationsgewinnbesteuerung erfüllte, bitten wir zusätzlich um folgende Angaben:",{"$nulls":15},{"$f":"T46","v":0}]
[]
[null,null,"Antrag auf privilegierte Besteuerung des Liquidationsgewinns (§ 45 Abs. 1 lit. f. StG; Art. 37b DBG)",{"$nulls":14},{"$f":"IF(T48=FALSE,\"Nein\",\"Ja\")","v":"Nein"},"privilegierte Besteuerung § 45 Abs. 1 lit. f StG; Art. 37b DBG",false]
[{"$nulls":3},"Beendigung der Liquidation am (Datum)",{"$nulls":13},{"$f":"IF(OR(N51=\"\",N49=\"\"),\"\",IF(R18=\"Ja\",\"Invalid\",IF(R51>=55,\"Alter >55\",\"Nein\")))","v":""},{"$f":"IF(R48=\"Ja\",IF(R18=\"Ja\",\"Achtung: Invalidität prüfen\",IF(R51<55,\"Achtung: Alter 55 noch nicht erreicht\",\"\")),\"\")","v":""}]
[{"$nulls":3},"Datum der definitiven Aufgabe der selbstständigen Erwerbstätigkeit",{"$nulls":13},"massgeblich für Altersberechnung"]
[{"$nulls":3},"Geburtsdatum der steuerpflichtigen Person",{"$nulls":13},{"$f":"IF(N51=\"\",\"\",INT(YEARFRAC(N51,N49)))","v":""},"Alter (vollendet), bei Beendigung der Liquidation"]
[{"$nulls":3},"Bei Erbgang Geburtsdatum des Erblassers",{"$nulls":13},{"$f":"IF(N52=\"\",\"\",INT(YEARFRAC(N52,N49)))","v":""},"Alter (vollendet), bei Beendigung der \"Liquidation\" (= Todestag)"]
[]
[null,null,"Antrag auf Anrechnung einer fiktiven Deckungslücke (§ 45 Abs. 1 lit. f StG; Art. 37b DBG)",{"$nulls":14},{"$f":"IF(T54=FALSE,\"Nein\",\"Ja\")","v":"Nein"},"Antrag fiktive Deckungslücke § 45 Abs. 1 lit. f StG; Art. 37b DBG",false]
[null,null,"Ü Detaillierte Angaben unter Ziffer 2 des Fragebogens",{"$nulls":14},{"$f":"IF(AND(R57>=-1,R56<70),\"Ja\",\"Nein\")","v":"Nein"},"fiktiver Einkauf zulässig?"]
[{"$nulls":17},{"$f":"IF(OR(N50=\"\",N51=\"\"),\"\",INT(YEARFRAC(N51,N50)))","v":""},"Alter bei Aufgabe der selbständigen Erwerbstätigkeit (< 70 Jährig)"]
[{"$nulls":17},{"$f":"IF(N50=\"\",\"\",IF(N49<N50,INT(YEARFRAC(N50,N49)),-INT(YEARFRAC(N50,N49))))","v":""},"Aufgabe der selbständigen Erwerbstätigkeit vor Liquidation (<= -1)"]
[{"$nulls":17},{"$f":"IF(N50=\"\",\"Nein\",IF(N50<T58,\"Ja\",\"Nein\"))","v":"Nein"},"altrechtlicher Revers vor 1.1.1995","1995-01-01"]
[]
["2.","Ermittlung des fiktiven Einkaufs in die berufliche Vorsorge"]
[]
[2.1,"Anrechenbare Beitragsjahre",{"$nulls":13},"ganze Jahre"]
[null,null,"Alter der steuerpflichtigen Person am Ende des Liquidationsjahres,",{"$nulls":14},{"$f":"IF(AND(R54=\"Ja\",R55=\"Ja\"),1,0)","v":0}]
[null,null,"angefangene Altersjahre (höchstens ordentliches AHV-Rentenalter)",{"$nulls":11},"+",{"$f":"IF(R63=1,IF(R64>R65,R65,R64),0)","v":0},null,{"$f":"YEAR(N50)-YEAR(N51)+1","v":1},"Alter (angefangene Jahre)"]
[null,null,"Anrechnung der Jahre ab dem vollendeten 25. Altersjahr",{"$nulls":11},"-",25,null,{"$f":"R44","v":65},"Rentenalter"]
[2.2,"Beitragsjahre",{"$nulls":12},"=",{"$f":"IF(R63=1,P64-P65,0)","v":0}]
[]
[2.3,"Massgebendes Einkommen",{"$nulls":5},"Geschäftsjahr",null,null,"Monate",null,null,"Einkommen"]
[null,null,"Durchschnitt des AHV-pflichtigen Einkommens",{"$nulls":4},"L-5",null,{"$f":"IF(N49=\"\",\"\",J70-1)","v":""},null,null,"+"]
[null,null,"aus selbstständiger Erwerbstätigkeit der letzten",{"$nulls":4},"L-4",null,{"$f":"IF(N49=\"\",\"\",J71-1)","v":""},null,null,"+"]
[null,null,"fünf Geschäftsjahre vor dem Liquidationsjahr",{"$nulls":4},"L-3",null,{"$f":"IF(N49=\"\",\"\",J72-1)","v":""},null,null,"+",null,"Massgebendes durchschnittl. Einkommen (arithmetisches Mittel)"]
[{"$nulls":7},"L-2",null,{"$f":"IF(N49=\"\",\"\",J73-1)","v":""},null,null,"+"]
[{"$nulls":7},"L-1",null,{"$f":"J75","v":""},null,null,"+"]
[null,null,"abzüglich davon Liquidationsgewinn"]
[null,null,"(wie Ziffer 5.8, netto nach AHV-Abzug)",{"$nulls":4},"L-1",null,{"$f":"IF(N49=\"\",\"\",YEAR(N49)-1)","v":""},null,null,"-",{"$f":"IF(R63=1,P212,0)","v":0}]
[2.4,"Total",{"$nulls":10},"=",{"$f":"SUM(N69:N74)-N75","v":0},"=",{"$f":"IF(SUM(L69:L73)=0,0,N76/SUM(L69:L73)*12)","v":0}]
[]
["Das Einkommen darf den zehnfachen oberen Grenzbetrag nach Art. 8 Abs. 1 BVG nicht überschreiten."]
[]
[2.5,"Fiktiver Einkaufsbedarf"]
[null,null,"Altersgutschriftensatz 15% multipliziert mit Anzahl Beitragsjahre (Ziffer 2.2)",{"$nulls":10},{"$f":"P66","v":0},null,{"$f":"N81*R81","v":{"v":0,"d":"0%"}},null,{"v":0.15,"d":"15%"},"Altersgutschriftensatz"]
[null,null,"multipliziert mit massgebendem durchschnittlichem Einkommen (Ziffer 2.4)",{"$nulls":10},{"$f":"P76","v":0},"=",{"$f":"N82*P81","v":0}]
[null,"Abzüglich Altersguthaben aus beruflicher Vorsorge"]
[null,null,"Guthaben bei Vorsorge- und Freizügigkeitseinrichtungen Säule 2"]
[null,null,"(è Vorsorgeausweise beilegen)"]
[null,null,"Säule 3a-Guthaben (è Bescheinigungen beilegen)"]
[{"$nulls":3},"davon anzurechnen beim Einkauf in die Säule 2 (Art. 60a Abs. 2 BVV2)"]
[null,"Abzüglich Vorbezüge für Wohneigentum, übrige Vorbezüge und Barauszahlungen"]
[null,"aus Vorsorge- und Freizügigkeitseinrichtungen Säulen 2 und 3a"]
[null,"(è Bescheinigungen beilegen)"]
[null,"Abzüglich Alters- und Invalidenleistungen von Vorsorge- und "]
[null,"Freizügigkeitseinrichtungen Säulen 2 und 3a (è Bescheinigungen beilegen)",{"$nulls":12},"-",{"$f":"SUM(N84:N92)","v":0}]
[2.6,"Total fiktiver Einkaufsbedarf",{"$nulls":12},"=",{"$f":"IF(P82-P92<0,0,P82-P92)","v":0}]
[]
[]
[]
[]
["3.","Ermittlung von Liquidationsgewinnen von land- und forstwirtschaftlichen Grundstücken1)"]
[{"$nulls":17},{"$f":"R28","v":"Nein"},"Hofübergabe nach BGBB"]
["3a.","Veräusserung von land- und forstwirtschaftlichen Grundstücken",{"$nulls":15},{"$f":"R29","v":"Nein"},"* Buchwertsübergabe (Eingabe aller Objekte im Feld A)"]
[null,null,"Bezeichnung der Liegenschaften",{"$nulls":6},"Datum der Veräusserung",null,null,"Verkaufspreis"]
[null,"A*",{"$nulls":10},{"$f":"IF(R100=\"Ja\",\"Buchwertsübergabe\",\"\")","v":""},{"$nulls":4},{"$f":"IF(T102=FALSE,\"Nein\",\"Ja\")","v":"Nein"},"Steueraufschub nach § 97 StG",false]
[null,"B",{"$nulls":15},{"$f":"IF(T103=FALSE,\"Nein\",\"Ja\")","v":"Nein"},"Steueraufschub nach § 97 StG",false]
[]
["3a.1","Ermittlung der wieder eingebrachten Abschreibungen",{"$nulls":10},"A",null,"B"]
[null,"Kaufpreis (oder Anlagekosten gemäss Aufzeichnungen)"]
[null,"Investitionen (soweit nicht als Unterhalt berücksichtigt)",{"$nulls":10},"+",null,"+"]
[null,"Anlagekosten",{"$nulls":10},"=",{"$f":"IF(N106+N107=0,N112+N109,N106+N107)","v":0},"=",{"$f":"IF(P106+P107=0,P112+P109,P106+P107)","v":0}]
[null,"Abzüglich Einkommenssteuerwert (Buchwert)",{"$nulls":10},"-",null,"-"]
["3a.2","Wiedereingebrachte Abschreibungen",{"$nulls":10},"=",{"$f":"N108-N109","v":0},"=",{"$f":"P108-P109","v":0}]
[null,"Oder"]
["3a.3","Auflistung der steuerlich berücksichtigten Abschreibungen seit Erwerb beifügen",{"$nulls":15},{"$f":"IF(N108-N109<0,\"Überprüfen eingegebene Daten A\",IF(N112=N110,\"\",IF(N112=\"\",\"\",\"Fehleingabe wiedereingebrachte Abschreibungen A\")))","v":""}]
[{"$nulls":17},{"$f":"IF(P108-P109<0,\"Überprüfen eingegebene Daten B\",IF(P112=P110,\"\",IF(P112=\"\",\"\",\"Fehleingabe wiedereingebrachte Abschreibungen B\")))","v":""}]
["3b.","Überführung von land- und forstwirtschaftlichen Grundstücken ins Privatvermögen"]
[null,null,"Bezeichnung der Liegenschaften",{"$nulls":6},"Datum der Überführung",null,null,"Anlagekosten"]
[null,"A**"]
[null,"B"]
[]
["3b.1","Ermittlung der wiedereingebrachten Abschreibungen",{"$nulls":10},"A",null,"B"]
[null,"Kaufpreis (oder Anlagekosten gemäss Aufzeichnungen)",{"$nulls":11},{"$f":"P116","v":0},null,{"$f":"P117","v":0}]
[null,"Investitionen (soweit nicht als Unterhalt berücksichtigt)",{"$nulls":10},"+",null,"+"]
[null,"Anlagekosten",{"$nulls":10},"=",{"$f":"IF(N120+N121=0,N126+N123,N120+N121)","v":0},"=",{"$f":"IF(P120+P121=0,P126+P123,P120+P121)","v":0}]
[null,"Abzüglich Einkommenssteuerwert (Buchwert)",{"$nulls":10},"-",null,"-"]
["3b.2","Wiedereingebrachte Abschreibungen",{"$nulls":10},"=",{"$f":"N122-N123","v":0},"=",{"$f":"P122-P123","v":0},null,{"$f":"R38","v":"Nein"},"** Steueraufschub auf den wiedereingebrachten Abschreibungen § 23 StG"]
[null,"Oder",{"$nulls":16},"Korrekte Berechnung nur wenn Objekt mit Aufschub in Feld A erfasst wird."]
["3b.3","Auflistung der steuerlich berücksichtigten Abschreibungen seit Erwerb beifügen",{"$nulls":15},{"$f":"IF(N122-N123<0,\"Überprüfen eingegebene Daten A\",IF(N126=N124,\"\",IF(N126=\"\",\"\",\"Fehleingabe wiedereingebrachte Abschreibungen A\")))","v":""}]
[{"$nulls":17},{"$f":"IF(P122-P123<0,\"Überprüfen eingegebene Daten B\",IF(P126=P124,\"\",IF(P126=\"\",\"\",\"Fehleingabe wiedereingebrachte Abschreibungen B\")))","v":""}]
[]
[]
[]
["4.","Ermittlung von Liquidationsgewinnen von nicht land- und forstwirtschaftlichen Grundstücken1)"]
[]
["4a.","Veräusserung von nicht land- und forstwirtschaftlichen Grundstücken"]
[null,null,"Bezeichnung der Liegenschaften",{"$nulls":7},"Datum der \nVeräusserung",null,"Verkehrswert BGBB",null,"Verkaufs-\npreis",{"$nulls":3},"Verkehrswert BGBB: bei Bauland z.B. Pauschal \nmit 10.00/m2 einsetzen"]
[null,"A",{"$nulls":15},{"$f":"IF(T135=FALSE,\"Nein\",\"Ja\")","v":"Nein"},"Einzonung im Liquidationsjahr",false]
[null,"B",{"$nulls":15},{"$f":"IF(T136=FALSE,\"Nein\",\"Ja\")","v":"Nein"},"Einzonung im Liquidationsjahr",false]
[]
["4a.1","Ermittlung der wiedereingebrachten Abschreibungen",{"$nulls":10},"A",null,"B"]
[null,"Kaufpreis (oder Anlagekosten gemäss Aufzeichnungen) / z.B. Landwert landw. Land",{"$nulls":15},{"$f":"IF(N139=\"\",0,IF(N139>N135,0,N135-N139))","v":0},"A: Aufwertung Wertzuwachs bis Verkehrswert BGBB"]
[null,"Investitionen (soweit nicht als Unterhalt berücksichtigt) / z.B. Erschliessungskosten Bauland",{"$nulls":10},"+",null,"+",null,null,{"$f":"IF(P139=\"\",0,IF(P139>N136,0,N136-P139))","v":0},"B: Aufwertung Wertzuwachs bis Verkehrswert BGBB"]
[null,"Anlagekosten",{"$nulls":10},"=",{"$f":"IF(N139+N140=0,N145+N142,N139+N140)","v":0},"=",{"$f":"IF(P139+P140=0,P145+P142,P139+P140)","v":0}]
[null,"Abzüglich Einkommenssteuerwert (Buchwert)",{"$nulls":10},"-",null,"-"]
["4a.2","Wiedereingebrachte Abschreibungen",{"$nulls":10},"=",{"$f":"N141-N142","v":0},"=",{"$f":"P141-P142","v":0}]
[null,"Oder"]
["4a.3","Auflistung der steuerlich berücksichtigten Abschreibungen seit Erwerb beifügen",{"$nulls":15},{"$f":"IF(N141-N142<0,\"Überprüfen eingegebene Daten A\",IF(N145=N143,\"\",IF(N145=\"\",\"\",\"Fehleingabe wiedereingebrachte Abschreibungen A\")))","v":""}]
[{"$nulls":17},{"$f":"IF(P141-P142<0,\"Überprüfen eingegebene Daten B\",IF(P145=P143,\"\",IF(P145=\"\",\"\",\"Fehleingabe wiedereingebrachte Abschreibungen B\")))","v":""}]
["4b.","Überführung von nicht land- und forstwirtschaftlichen Grundstücken ins Privatvermögen"]
[null,null,"Bezeichnung der Liegenschaften",{"$nulls":7},"Datum der \nÜberführung",null,"Verkehrswert BGBB",null,"Verkehrs-\nwert",{"$nulls":3},"Verkehrswert BGBB: bei Bauland z.B. Pauschal \nmit 10.00/m2 einsetzen"]
[null,"A**",{"$nulls":15},{"$f":"IF(T149=FALSE,\"Nein\",\"Ja\")","v":"Nein"},"Einzonung im Liquidationsjahr",false]
[null,"B",{"$nulls":15},{"$f":"IF(T150=FALSE,\"Nein\",\"Ja\")","v":"Nein"},"Einzonung im Liquidationsjahr",false]
[]
["4b.1","Ermittlung der wiedereingebrachten Abschreibungen",{"$nulls":10},"A",null,"B"]
[null,"Kaufpreis (oder Anlagekosten gemäss Aufzeichnungen) / z.B. Landwert landw. Land",{"$nulls":15},{"$f":"IF(N153=\"\",0,IF(N153>N149,0,N149-N153))","v":0},"A: Aufwertung Wertzuwachs bis Verkehrswert BGBB"]
[null,"Investitionen (soweit nicht als Unterhalt berücksichtigt) / z.B. Erschliessungskosten Bauland",{"$nulls":10},"+",null,"+",null,null,{"$f":"IF(P153=\"\",0,IF(P153>N150,0,N150-P153))","v":0},"B: Aufwertung Wertzuwachs bis Verkehrswert BGBB"]
[null,"Anlagekosten",{"$nulls":10},"=",{"$f":"IF(N153+N154=0,N159+N156,N153+N154)","v":0},"=",{"$f":"IF(P153+P154=0,P159+P156,P153+P154)","v":0}]
[null,"Abzüglich Einkommenssteuerwert (Buchwert)",{"$nulls":10},"-",null,"-"]
["4b.2","Wiedereingebrachte Abschreibungen",{"$nulls":10},"=",{"$f":"N155-N156","v":0},"=",{"$f":"P155-P156","v":0},null,{"$f":"R38","v":"Nein"},"** Steueraufschub auf den wiedereingebrachten Abschreibungen § 23 StG"]
[null,"Oder ",{"$nulls":16},"Korrekte Berechnung nur wenn Objekt mit Aufschub in Feld A erfasst wird."]
["4b.3","Auflistung der steuerlich berücksichtigten Abschreibungen seit Erwerb beifügen",{"$nulls":15},{"$f":"IF(N155-N156<0,\"Überprüfen eingegebene Daten A\",IF(N159=N157,\"\",IF(N159=\"\",\"\",\"Fehleingabe wiedereingebrachte Abschreibungen A\")))","v":""}]
[{"$nulls":17},{"$f":"IF(P155-P156<0,\"Überprüfen eingegebene Daten B\",IF(P159=P157,\"\",IF(P159=\"\",\"\",\"Fehleingabe wiedereingebrachte Abschreibungen B\")))","v":""}]
["4b.4","Ermittlung des Wertzuwachses"]
[null,"Verkehrswert",{"$nulls":11},{"$f":"P149","v":0},null,{"$f":"P150","v":0},null,{"$f":"IF(T31=TRUE,\"Ja\",\"Nein\")","v":"Nein"},"Steueraufschub auf dem Wertzuwachs §32a StG; Art. 18a DBG"]
[null,"Abzüglich Anlagekosten, resp. Verkehrswert BGBB (Bundessteuer)",{"$nulls":10},"-",{"$f":"IF(AND(N149<>\"\",N149<P149,N149>N155),N149,IF(N155=0,N156+N159,N155))","v":0},"-",{"$f":"IF(AND(N150<>\"\",N150<P150,N150>P155),N150,IF(P155=0,P156+P159,P155))","v":0}]
["4b.5","Wertzuwachs",{"$nulls":10},"=",{"$f":"N162-N163","v":0},"=",{"$f":"P162-P163","v":0}]
[null,"zu berücksichtigende Anlagekosten bei den Kantonssteuern",{"$nulls":11},{"$f":"IF(R149=\"Nein\",N155,IF(AND(N149<>\"\",N149<P149,N149>N155),N149,N155))","v":0},null,{"$f":"IF(R150=\"Nein\",P155,IF(AND(N150<>\"\",N150<P150,N150>P155),N150,P155))","v":0}]
[]
[]
[]
[]
["5.","Ermittlung des Liquidationsgewinns"]
[]
[5.1,"Verkaufserlöse"]
[null,null,"Grundstücke, Liegenschaften (Ziffern 3a, 4a)",{"$nulls":9},"+",{"$f":"P102+P103+P135+P136","v":0}]
[null,null,"übriges Anlagevermögen"]
[null,null,"(Betriebseinrichtung, Maschinen, Fahrzeuge, Kontingente etc.)",{"$nulls":9},"+"]
[null,null,"Umlaufvermögen (Vorräte, Viehhabe etc.)",{"$nulls":9},"+"]
[{"$nulls":12},"+"]
[null,"./. Verkaufs- und Liquidationskosten",{"$nulls":10},"-",{"$f":"'Hilfsblatt Verkaufskosten'!F13","v":0},"+",{"$f":"SUM(N173:N177)-N178","v":0},null,"Eingabe Verkaufskosten"]
[5.2,"Überführung ins Privatvermögen, Verkehrswert, resp. Anlagekosten (landw. Grundstücke)"]
[null,null,"Grundstücke, Liegenschaften (Ziffern 3b, 4b)",{"$nulls":9},"+",{"$f":"N122+P122+P149+P150","v":0}]
[null,null,"übriges Geschäftsvermögen",{"$nulls":9},"+"]
[{"$nulls":12},"+",null,"+",{"$f":"SUM(N180:N182)","v":0}]
[5.3,"Einkommenssteuerwerte (Buchwerte) "]
[null,"gemäss Bilanz oder ",{"$nulls":9},"Datum"]
[null,"Aufstellungen über Aktiven und Passiven vom "]
[null,"Grundstücke (Ziffern 3a.1, 3b.1, 4a.1, 4b.1)",{"$nulls":10},"+",{"$f":"N109+P109+N123+P123+N142+P142+N156+P156","v":0}]
[null,"übriges Anlagevermögen"]
[null,"(Betriebseinrichtung, Maschinen, Fahrzeuge, Kontingente etc.)",{"$nulls":10},"+"]
[null,null,"Umlaufvermögen (Vorräte, Viehhabe etc.)",{"$nulls":9},"+"]
[{"$nulls":12},"+",null,"-",{"$f":"SUM(N186:N190)","v":0}]
["5.4","Übrige bei der Liquidation realisierte stille Reserven"]
[null,null,"Auflösung Rückstellungen und Reserven",{"$nulls":9},"+"]
[null,null,"Ersatzbeschaffungsreserven",{"$nulls":9},"+"]
[{"$nulls":12},"+",null,"+",{"$f":"SUM(N192:N194)","v":0}]
[5.5,"Gesamter Liquidationsgewinn",{"$nulls":12},"=",{"$f":"P178+P182-P190+P194","v":0}]
[null,"Abzüglich im Liquidationsgewinn enthaltener Grundstückgewinn auf land- und forstwirtschaftlichen Grundstücken"]
[null,"und/oder bei Nutzungsänderung bei Einzonung aktuell (Kantons- und Bundessteuer; Ziffer 6)",{"$nulls":12},"-",{"$f":"'Zusammenfassung der Einzelfälle'!AA25+'Zusammenfassung der Einzelfälle'!AB25+R249","v":0}]
[null,"Abzüglich Steueraufschub aus Gewinn/Verlust bei Buchwertsübergabe",{"$nulls":12},"-",{"$f":"IF(R198=\"Nein\",0,P102-N109)","v":0},null,{"$f":"R29","v":"Nein"},"Buchwertsübergabe"]
[null,"Abzüglich Differenz (Verkehrswert BGBB vor Einzonung ./. Anlagekosten) bei Einzonung in früheren Jahren"]
[null,"steuerfrei bei der direkten Bundessteuer (Art. 18 Abs. 4 DBG)",{"$nulls":12},"-",{"$f":"R139+R140+R153+R154-R244","v":0},null,{"$f":"IF(OR(R135=\"Ja\",R136=\"Ja\",R149=\"Ja\",R150=\"Ja\")=TRUE,\"Ja\",\"Nein\")","v":"Nein"},"Wenn Einzonung im Liquidationsjahr --> Grundstückgewinn"]
[null,"Abzüglich Steueraufschub auf dem Wertzuwachs von Liegenschaften des Anlagevermögens ",{"$nulls":12},"-",{"$f":"IF(R201=\"Nein\",0,N164+P164)","v":0},null,{"$f":"R31","v":"Nein"},"Steueraufschub auf dem Wertzuwachs §32a StG; Art. 18a DBG"]
[null,"Abzüglich steuerfreier Kapitalgewinn direkte Bundessteuer bei altrechtlichem Revers",{"$nulls":12},"-",{"$f":"'Zusammenfassung der Einzelfälle'!Q25-IF(R202=\"Ja\",'Hilfsblatt Verkaufskosten'!F15,0)","v":0},null,{"$f":"R58","v":"Nein"},"altrechtlicher Revers vor 1.1.1995"]
["5.6","Im Liquidationsjahr realisierter Liquidationsgewinn, massgebend für AHV-Beitragspflicht",{"$nulls":12},"=",{"$f":"P195-P197-P198-P200-P201-P202","v":0}]
[null,"Geschuldeter persönlicher AHV-Beitrag auf obigem Liquidationsgewinn",{"$nulls":11},{"v":0.1025,"d":"10.25%"},"-",{"$f":"IF(P203<0,0,P203*N204)","v":0}]
["5.7","Im Vorjahr realisierter Liquidationsgewinn"]
[null,"(Buchhaltungskonto oder Auszug aus den steuerlichen Aufzeichnungen beilegen)"]
[null,null,"Kapitalgewinn aus Verkauf von Anlagevermögen"]
[null,null,"Kapitalgewinn aus Überführung ins Privatvermögen",{"$nulls":9},"+"]
[null,null,"Auflösung von Rückstellungen und Reserven",{"$nulls":9},"+"]
[{"$nulls":12},"+"]
["5.8","Im Vorjahr realisierter Liquidationsgewinn, massgebend für AHV-Beitragspflicht",{"$nulls":10},"=",{"$f":"SUM(N207:N210)","v":0}]
[null,null,"geschuldeter persönlicher AHV-Beitrag auf obigem Liquidationsgewinn",{"$nulls":8},{"$f":"IF(N204=\"\",0,N204)","v":{"v":0.1025,"d":"10.25%"}},"-",{"$f":"N211*L212","v":0},"+",{"$f":"N211-N212","v":0}]
[]
["5.9","Steuerbarer Liquidationsgewinn, massgebend für die direkte Bundessteuer",{"$nulls":12},"=",{"$f":"P203-P204+P212","v":0}]
[{"$nulls":17},{"$f":"IF(R49=\"Nein\",\"Alter<55\",IF(R48=\"Ja\",\"Ja\",\"Nein\"))","v":"Nein"},"privilegierte Besteuerung Art. 37b DBG"]
[null,null,"davon fiktiver Einkauf nach Art. 37b DBG",{"$nulls":10},"(maximaler Einkaufsbetrag gem. Ziffer 2.6)",null,{"$f":"IF(R216=\"Ja\",IF(P93>P214,P214,P93),0)","v":0},null,{"$f":"IF(R49=\"Nein\",\"Alter<55\",IF(R54=\"Ja\",\"Ja\",\"Nein\"))","v":"Nein"},"fiktiver Einkauf Art. 37b DBG"]
[null,null,"davon restlicher Liquidationsgewinn nach Art. 37b DBG",{"$nulls":10},"(Ziffer 5.9 abzüglich fiktiver Einkauf)",null,{"$f":"IF(R215=\"Ja\",IF(P214-P216<0,0,P214-P216),0)","v":0}]
[]
[null,null,"Bei Antrag auf Steueraufschub bei Generationenwechsel nach § 23 StG (Ziffer 1)"]
[null,null,"wieder eingebrachte Abschreibungen (steuerbar für die direkte Bundessteuer)",{"$nulls":11},"-",{"$f":"IF(R220=\"Ja\",(N124+N157+IF(R201=\"Nein\",N164,0))*(1-N204),0)","v":0},null,{"$f":"R38","v":"Nein"},"Ziffer 3: Steueraufschub (Netto nach Abzug pers. AHV-Beiträge)"]
[null,null,"Differenz (Verkehrswert BGBB vor Einzonung ./. Anlagekosten), wenn Einzonung nicht im aktuellen Jahr",{"$nulls":11},"+",{"$f":"IF(AND(N135>N139,R135=\"Nein\"),N135-N139,0)+IF(AND(N136>P139,R136=\"Nein\"),N136-P139,0)+IF(AND(N149>N153,R149=\"Nein\"),N149-N153,0)+IF(AND(N150>P153,R150=\"Nein\"),N150-P153,0)","v":0},null,{"$f":"IF(OR(R135=\"Ja\",R136=\"Ja\",R149=\"Ja\",R150=\"Ja\")=TRUE,\"Ja\",\"Nein\")","v":"Nein"},"Wenn Einzonung im Liquidationsjahr --> Grundstückgewinn"]
[null,null,"Differenz Aufschub Wertzuwachs Kantonssteuer aufgrund unterschiedlicher Anlagekosten",{"$nulls":11},"-",{"$f":"IF(AND(R149=\"Nein\",R222=\"Ja\"),IF(N149-N155<0,0,N149-N155),0)+IF(AND(R150=\"Nein\",R222=\"Ja\"),IF(N150-P155<0,0,N150-P155),0)","v":0},null,{"$f":"R31","v":"Nein"},"Steueraufschub auf dem Wertzuwachs §32a StG; Art. 18a DBG"]
[null,null,"Steuerbarer Kapitalgewinn Kantonssteuer bei altrechtlichem Revers",{"$nulls":11},"+",{"$f":"P202","v":0},null,{"$f":"R58","v":"Nein"},"altrechtlicher Revers vor 1.1.1995"]
[null,null,"Differenz Kantonssteuer zu direkter Bundessteuer (z.B. andere Einkommenssteuerwerte)",{"$nulls":11},"+/-"]
[]
["5.10","Steuerbarer Liquidationsgewinn, massgebend für die Kantonssteuer",{"$nulls":12},"=",{"$f":"P214-P220+P221+P224-P222+P223","v":0},null,{"$f":"R38","v":"Nein"},"Steueraufschub auf den wiedereingebrachten Abschreibungen § 23 StG"]
[{"$nulls":17},{"$f":"IF(R49=\"Nein\",\"Alter<55\",IF(R48=\"Ja\",\"Ja\",\"Nein\"))","v":"Nein"},"privilegierte Besteuerung § 45 Abs. 1 lit. f StG"]
[null,null,"davon fiktiver Einkauf nach § 45 Abs. 1 lit. f StG",{"$nulls":10},"(maximaler Einkaufsbetrag gem. Ziffer 2.6)",null,{"$f":"IF(R228=\"Ja\",IF(P93>P226,P226,P93),0)","v":0},null,{"$f":"IF(R49=\"Nein\",\"Alter<55\",IF(R54=\"Ja\",\"Ja\",\"Nein\"))","v":"Nein"},"fiktiver Einkauf § 45 Abs. 1 lit. f StG"]
[null,null,"davon restlicher Liquidationsgewinn nach § 45 Abs. 1 lit. f StG",{"$nulls":10},"(Ziffer 5.10 abzüglich fiktiver Einkauf)",null,{"$f":"IF(R227=\"Ja\",IF(P226-P228<0,0,P226-P228),0)","v":0}]
[]
[]
[]
[]
["6.","Wertzuwachs auf land- und forstwirtschaftlichen Grundstücken oder Nutzungsänderung Einzonung aktuell"]
[]
[null,"Begrenzung des Kapitalgewinnes auf die Höhe der Anlagekosten (§ 27 Abs. 4 StG; Art. 18 Abs. 4 DBG)"]
[6.1,"Wertzuwachs auf veräusserten Grundstücken"]
[null,"Verkaufserlös (Ziffer 3a)",null,null,"(Parzelle: ",{"$f":"IF(C102=\"\",\"\",C102)","v":""},{"$nulls":5},")","+",{"$f":"IF(P102<N106,0,P102)+IF(R240=\"Nein\",IF(P103<P106,0,P103))","v":0},{"$nulls":3},{"$f":"R29","v":"Nein"},"Buchwertsübergabe (A)"]
[null,"Abzüglich anteilige Verkaufs- und Liquidationskosten",{"$nulls":10},"-",{"$f":"IF(N238=0,0,'Hilfsblatt Verkaufskosten'!F16)","v":0},{"$nulls":3},{"$f":"R102","v":"Nein"},"oder Steueraufschub § 97 StG (A)"]
[null,null,"Abzüglich Anlagekosten (Ziffer 3a)",{"$nulls":9},"-",{"$f":"IF(P102<N106,0,N108)+IF(R240=\"Nein\",IF(P103<P106,0,P108))","v":0},"+",{"$f":"N238-N239-N240","v":0},null,{"$f":"R103","v":"Nein"},"oder Steueraufschub § 97 StG (B)"]
[]
[6.2,"Wertzuwachs auf überführten Grundstücken oder bei Nutzungsänderung Einzonung aktuell"]
[null,"Verkehrswert",null,null,"(Parzelle: ",{"$nulls":6},")","+",{"$f":"IF(AND(N135>N139,R135=\"Ja\"),N135,0)+IF(AND(N136>P139,R136=\"Ja\"),N136,0)+IF(AND(N149>N153,R149=\"Ja\"),N149,0)+IF(AND(N150>P153,R150=\"Ja\"),N150,0)","v":0},{"$nulls":3},{"$f":"IF(OR(R135=\"Ja\",R136=\"Ja\",R149=\"Ja\",R150=\"Ja\")=TRUE,\"Ja\",\"Nein\")","v":"Nein"},"Wenn Einzonung im Liquidationsjahr --> Grundstückgewinn"]
[null,null,"Abzüglich Anlagekosten (Buchwert und wiedereingebrachte Abschreibungen)",{"$nulls":9},"-",{"$f":"IF(AND(N135>N139,R135=\"Ja\"),N139,0)+IF(AND(N136>P139,R136=\"Ja\"),P139,0)+IF(AND(N149>N153,R149=\"Ja\"),N153,0)+IF(AND(N150>P153,R150=\"Ja\"),P153,0)","v":0},"+",{"$f":"N243-N244","v":0},null,{"$f":"IF(R243=\"Ja\",IF(AND(N135>N139,R135=\"Ja\"),N135-N139,0)+IF(AND(N136>P139,R136=\"Ja\"),N136-P139,0)+IF(AND(N149>N153,R149=\"Ja\"),N149-N153,0)+IF(AND(N150>P153,R150=\"Ja\"),N150-P153,0),0)","v":0},"Grundstückgewinn bei aktueller Einzonung"]
[6.3,"Im Gesamtgewinn enthaltener Grundstückgewinn",{"$nulls":11},"(zu übertragen in Ziffer 7.1)","=",{"$f":"P240+P244","v":0}]
[{"$nulls":15},{"$f":"IF(AND(R253=\"Ja\",R254=\"Nein\"),\"negativer Wertzuwachs ist nicht in Ziffer 7.1 zu übertragen\",IF(AND(R253=\"Nein\",R254=\"Ja\"),\"Anteil aufgeschobener Grundstückgewinn ist nicht in Ziffer 7.1 zu übertragen\",IF(AND(R253=\"Ja\",R254=\"Ja\"),\"Nach Abzug des Anteils aufgeschobener Grundstückgewinn ist der negative Wertzuwachs nicht in Ziffer 7.1 zu übertragen\",\"\")))","v":""},null,{"$f":"N238-N240+N243-N244","v":0},"Wertzuwachs Brutto"]
[{"$nulls":17},{"$f":"-'Zusammenfassung der Einzelfälle'!AB25","v":0},"./. aufgeschobener Wertzuwachs"]
[{"$nulls":17},{"$f":"R246+R247","v":0},"= zu besteuernder Wertzuwachs"]
[{"$nulls":17},{"$f":"IF(R248=0,0,ROUND(-('Hilfsblatt Verkaufskosten'!F16/IF('Hilfsblatt Verkaufskosten'!D16=0,1,'Hilfsblatt Verkaufskosten'!D16)*Fragebogen!R248),0))","v":0},"./. anteilige Verkaufskosten"]
["7.","Grundstückgewinnsteuer (auf land- und forstwirtschaftlichen Grundstücken oder bei Nutzungsänderung)",{"$nulls":15},{"$f":"R248+R249","v":0},"= Grundstückgewinn"]
[]
[7.1,"Steuerbarer Grundstückgewinn (Wertzuwachs auf veräusserten Grundstücken; Ziffer 6.3)",{"$nulls":13},{"$f":"IF(R253=\"Ja\",0,R250)","v":0},null,"Grundstückgewinn CHF 0.00, wenn …"]
[7.2,"Steuerreduktion infolge Ersatzbeschaffung in selbstgenutztes Wohneigentum (§ 98 StG)",{"$nulls":15},{"$f":"IF(R250<0,\"Ja\",\"Nein\")","v":"Nein"},"Grundstückgewinn < CHF 0"]
[null,null,"Veräusserungserlös des bisher selbstgenutzten Wohneigentums",{"$nulls":9},"+",{"$nulls":4},{"$f":"IF(OR(R239=\"Ja\",R240=\"Ja\"),\"Ja\",\"Nein\")","v":"Nein"},"Steueraufschub § 97 StG"]
[null,null,"Abzüglich Anlagekosten des bisher selbstgenutzten Wohneigentums",{"$nulls":9},"-"]
[null,null,"anteiliger Gewinn am bisher selbstgenutzten Wohneigentum",{"$nulls":9},"=",{"$f":"IF(N254-N255<0,0,N254-N255)","v":0}]
[7.3,"bereits vorgenommene Ersatzbeschaffung"]
[null,null,"anteiliger Erwerbspreis für das selbstgenutzte Wohneigentum ",{"$nulls":9},"+"]
[null,null,"Abzüglich Anlagekosten des bisher selbstgenutzten Wohneigentums (Ziffer 7.2)",{"$nulls":9},"-",{"$f":"N255","v":0}]
[null,null,"aufgeschobener Grundstückgewinn (max. Ziffer 7.2)",{"$nulls":9},"=",{"$f":"IF(N258-N259>N256,N256,IF(N258-N259<0,0,N258-N259))","v":0},"-",{"$f":"IF(N260=0,0,IF(N260>P252,P252,N260))","v":0}]
[null,null,"(sofern die Anlagekosten grösser sind als die Ersatzbeschaffung, ist keine Steuerreduktion möglich)",{"$nulls":14},{"$f":"IF(K102=\"\",\"\",K102)","v":""},"Veräusserung landw. Land A"]
[7.4,"Steuerbarer Grundstückgewinn (nach Ersatzbeschaffung)",{"$nulls":12},"=",{"$f":"P252-P260","v":0},null,{"$f":"IF(K103=\"\",\"\",K103)","v":""},"Veräusserung landw. Land B"]
[{"$nulls":17},{"$f":"IF(K135=\"\",\"\",IF(R135=\"Ja\",K135,\"\"))","v":""},"Veräusserung neu eingezontes Bauland A"]
[7.5,"Steuerberechnung",{"$nulls":15},{"$f":"IF(K136=\"\",\"\",IF(R136=\"Ja\",K136,\"\"))","v":""},"Veräusserung neu eingezontes Bauland B"]
[null,"Erwerbsdatum:",{"$nulls":5},"Veräusserungsdatum:",{"$nulls":3},{"$f":"IF(R267=0,\"\",MIN(R261,R262,R263,R264,R265,R266))","v":""},{"$nulls":5},{"$f":"IF(K149=\"\",\"\",IF(R149=\"Ja\",K149,\"\"))","v":""},"Überführung neu eingezontes Bauland A"]
[null,"Massgebende Besitzesdauer (§ 110 StG):",{"$nulls":5},"bis",null,{"$f":"IF(R267=0,\"\",ROUNDUP((L265-E265)/365.25,0))","v":""},"Jahre",{"$nulls":6},{"$f":"IF(K150=\"\",\"\",IF(R150=\"Ja\",K150,\"\"))","v":""},"Überführung neu eingezontes Bauland B"]
[null,"Steuersatz gemäss § 109 StG:",{"$nulls":3},{"$f":"IF(J266=\"\",0,IF(J266>Berechnungsgrundlagen!G27,Berechnungsgrundlagen!H28,VLOOKUP(J266,Berechnungsgrundlagen!$G$3:$H$27,2)))","v":{"v":0,"d":"0%"}},{"$nulls":11},{"$f":"COUNT(R261:R266)","v":0},"Anzahl Daten"]
[null,"ergibt beim steuerbaren Grundstückgewinn (Ziffer 7.4) einen Steuerbetrag von",{"$nulls":13},{"$f":"ROUND(P262*F267/5,2)*5","v":{"v":0,"d":"0.00"}},null,{"$f":"IF(R267>1,\"Achtung: mehrere Daten der Veräusserung\",\"\")","v":""}]
[{"$nulls":17},{"$f":"IF(R267>1,\"--> Überprüfen der Besitzesdauer\",\"\")","v":""}]
[]
[]
["Bemerkungen"]
[]
[]
[]
[]
[]
["Datum",{"$nulls":8},"Unterschrift Betriebsinhaber / Betriebsinhaberin"]
[]
["Bitte reichen Sie die erforderlichen Unterlagen mit dem ausgefüllten Fragebogen ein."]
{"$rows_empty":72}
["1) ","für die Unterscheidung von \"land- und forstwirtschaftlichen Grundstücken\" zu \"nicht land- und forstwirtschaftlichen"]
[null,"Grundstücken\" wird auf das Kreisschreiben Nr. 38 der Eidgenössischen Steuerverwaltung vom 17. Juli 2013 und auf das "]
[null,"Bundesgesetz über das bäuerliche Bodenrecht (BGBB) verwiesen."]

{"sheet":"Hilfsblatt Verkaufskosten","index":1,"n_rows":24,"n_cols":7,"rows_kept":24,"merged":[[4,0,4,2],[5,0,5,2],[6,0,6,2],[7,0,7,2],[8,0,8,2],[9,0,9,2],[10,0,10,2],[11,0,11,2]]}
["Aufteilung Verkaufskosten auf Kapitalgewinn (Einkommenssteuer)",{"$nulls":5},"zurück auf Fragebogen"]
["und Grundstückgewinn (Grundstückgewinnsteuer)"]
[]
["Verkaufskosten Gesamt Liquidation",null,null,"Liegenschaft","übr. Anlageverm.\nUmlaufvermögen","Gesamt"]
["Beratung",null,null,{"$f":"IF(D18=0,0,F5/(D14+D15+D16)*(D15+D16))","v":0},{"$f":"IF(D18=0,0,F5/(D14+D15+D16)*D14)","v":0}]
[{"$nulls":3},{"$f":"IF(D18=0,0,F6/(D14+D15+D16)*(D15+D16))","v":0},{"$f":"IF(D18=0,0,F6/(D14+D15+D16)*D14)","v":0}]
["Verkaufskosten Liegenschaft"]
["Notar",null,null,{"$f":"F8","v":0}]
[{"$nulls":3},{"$f":"F9","v":0}]
["Verkaufskosten übr. Anlagvermögen/Umlaufvermögen"]
[{"$nulls":4},{"$f":"F11","v":0}]
[{"$nulls":4},{"$f":"F12","v":0}]
["Total",null,null,{"$f":"SUM(D5:D12)","v":0},{"$f":"SUM(E5:E12)","v":0},{"$f":"SUM(F5:F12)","v":0}]
["Kaptitalgewinn (übr.Anl.verm./Umlaufv.)",null,null,{"$f":"Fragebogen!N175+Fragebogen!N176+Fragebogen!N177+Fragebogen!N181+Fragebogen!N182+Fragebogen!N192+Fragebogen!N193+Fragebogen!N194-Fragebogen!N188-Fragebogen!N189-Fragebogen!N190","v":0},null,{"$f":"E13","v":0}]
["Kapitalgewinn (Liegenschaft)",null,null,{"$f":"Fragebogen!N173+Fragebogen!N180-Fragebogen!N186-'Hilfsblatt Verkaufskosten'!D16","v":0},null,{"$f":"ROUND(IF(D15<=0,0,IF(D16<=0,D13,D13/(D16+D15)*D15)),0)","v":0}]
["Grundstückgewinn",null,null,{"$f":"Fragebogen!N238-Fragebogen!N240","v":0},null,{"$f":"IF(D16=0,0,D13-F15)","v":0}]
[]
["Total Liquidationsgewinn vor Abzug Verkaufskosten",null,null,{"$f":"SUM(D14:D17)","v":0}]
["Kontrolle (Ziffer 5.5 + Verkaufskosten)",null,null,{"$f":"Fragebogen!P195+'Hilfsblatt Verkaufskosten'!F13","v":0}]
[]
[]
["Hinweis"]
["Die Aufteilung der Verkaufskosten erfolgt gewinnorientiert, da dies einfacher in der Praxis"]
["anwendbar ist, als eine erlösorientierte Verteilung."]

{"sheet":"Berechnungsgrundlagen","index":2,"n_rows":28,"n_cols":8,"rows_kept":28,"hidden":true}
["Besitzesdauer","Blatt 1",null,"Pauschale Anlagekosten",null,null,"Steuerbetrag"]
["Erwerbsdatum",{"$f":"Fragebogen!E265","v":"00:00:00"},null,"Jahre","Prozent",null,"Besitzesjahre","Prozent"]
["Veräusserungsdatum",{"$f":"Fragebogen!L265","v":""},null,11,{"v":0.75,"d":"75%"},null,1,{"v":0.4,"d":"40%"}]
["Jahre",{"$f":"YEARFRAC(B2,B3)","v":{"$error":"#VALUE!"}},null,12,{"v":0.74,"d":"74%"},null,2,{"v":0.38,"d":"38%"}]
["Jahre gerundet",{"$f":"INT(B4)+1","v":{"$error":"#VALUE!"}},null,13,{"v":0.73,"d":"73%"},null,3,{"v":0.36,"d":"36%"}]
[{"$nulls":3},14,{"v":0.72,"d":"72%"},null,4,{"v":0.34,"d":"34%"}]
[{"$nulls":3},15,{"v":0.71,"d":"71%"},null,5,{"v":0.32,"d":"32%"}]
[{"$nulls":3},16,{"v":0.7,"d":"70%"},null,6,{"v":0.3,"d":"30%"}]
[{"$nulls":3},17,{"v":0.69,"d":"69%"},null,7,{"v":0.28,"d":"28%"}]
[{"$nulls":3},18,{"v":0.68,"d":"68%"},null,8,{"v":0.26,"d":"26%"}]
[{"$nulls":3},19,{"v":0.67,"d":"67%"},null,9,{"v":0.24,"d":"24%"}]
[{"$nulls":3},20,{"v":0.66,"d":"66%"},null,10,{"v":0.22,"d":"22%"}]
[{"$nulls":3},21,{"v":0.65,"d":"65%"},null,11,{"v":0.2,"d":"20%"}]
[{"$nulls":3},22,{"v":0.64,"d":"64%"},null,12,{"v":0.19,"d":"19%"}]
[{"$nulls":3},23,{"v":0.63,"d":"63%"},null,13,{"v":0.18,"d":"18%"}]
[{"$nulls":3},24,{"v":0.62,"d":"62%"},null,14,{"v":0.17,"d":"17%"}]
[{"$nulls":3},25,{"v":0.61,"d":"61%"},null,15,{"v":0.16,"d":"16%"}]
[{"$nulls":3},26,{"v":0.6,"d":"60%"},null,16,{"v":0.15,"d":"15%"}]
[{"$nulls":3},">26",{"v":0.6,"d":"60%"},null,17,{"v":0.14,"d":"14%"}]
[{"$nulls":6},18,{"v":0.13,"d":"13%"}]
[{"$nulls":6},19,{"v":0.12,"d":"12%"}]
[{"$nulls":6},20,{"v":0.11,"d":"11%"}]
[{"$nulls":6},21,{"v":0.1,"d":"10%"}]
[{"$nulls":6},22,{"v":0.09,"d":"9%"}]
[{"$nulls":6},23,{"v":0.08,"d":"8%"}]
[{"$nulls":6},24,{"v":0.07,"d":"7%"}]
[{"$nulls":6},25,{"v":0.06,"d":"6%"}]
[{"$nulls":6},">25",{"v":0.05,"d":"5%"}]

{"sheet":"Zusammenfassung der Einzelfälle","index":3,"n_rows":28,"n_cols":32,"rows_kept":28,"merged":[[0,24,0,27],[0,29,0,31],[1,19,1,20],[1,21,1,22],[1,24,1,25],[1,26,1,27],[1,29,1,30],[25,3,25,5]]}
["Zusammenfassung der Einzelfälle",{"$nulls":23},"Staats- und Gemeindesteuer",{"$nulls":4},"Direkte Bundessteuer"]
[{"$nulls":19},"Kanton",null,"Bund",null,null,"Einkommen",null,"Grundstückgewinn",null,null,"Einkommen"]
[null,null,"Bezeichnung der Liegenschaft","Einzonung aktuell","Steueraufschub §97","Steueraufschub Wertzuwachs","Steueraufschub § 23 StG","Hofübergabe BGBB","Buchwertsübergabe","altrechtlicher Revers","Verkaufspreis","Verkehrswert BGBB","Verkehrswert","Anlagekosten","Buchwert","wiedereing. Abschreibungen","steuerbefreiter Kapitalgewinn direkte Bundessteuer bei altrechtlichem Revers (inkl. Wertzuwachs)","Wertzuwachs","stille Reserven","Wertzuwachs BGBB","Wertzuwachs (bereinigt)","Wertzuwachs BGBB","Wertzuwachs (bereinigt)",null,"zu besteuern","Aufschub","zu besteuern","Aufschub",null,"zu besteuern","Aufschub","steuerfrei"]
["3. Ermittlung von Liquidationsgewinnen von land- und forstwirtschaftlichen Grundstücken"]
["3a Veräusserung von land- und forstwirtschaftlichen Grundstücken"]
[null,"A",{"$f":"Fragebogen!C102","v":0},null,{"$f":"Fragebogen!R102","v":"Nein"},null,null,{"$f":"Fragebogen!R99","v":"Nein"},{"$f":"Fragebogen!R100","v":"Nein"},{"$f":"Fragebogen!R58","v":"Nein"},{"$f":"Fragebogen!P102","v":0},"-","-",{"$f":"Fragebogen!N108","v":0},{"$f":"Fragebogen!N109","v":0},{"$f":"IF(N6=0,Fragebogen!N112,'Zusammenfassung der Einzelfälle'!N6-'Zusammenfassung der Einzelfälle'!O6)","v":0},{"$f":"IF(J6=\"Ja\",P6,0)","v":0},{"$f":"K6-N6","v":0},"-","-","-","-","-",null,{"$f":"IF(I6=\"Ja\",0,IF(K6>N6,P6,K6-O6))","v":0},{"$f":"IF(I6=\"Nein\",0,IF(K6>N6,P6,K6-O6))","v":0},{"$f":"IF(AND(E6=\"Nein\",I6=\"Nein\"),IF(K6>N6,K6-N6,0),0)","v":0},{"$f":"IF(OR(E6=\"Ja\",I6=\"Ja\"),IF(K6>N6,K6-N6,0),0)","v":0},null,{"$f":"IF(I6=\"Ja\",0,IF(K6>N6,P6,K6-O6))-Q6","v":0},{"$f":"IF(I6=\"Nein\",0,IF(K6>N6,P6,K6-O6))","v":0},{"$f":"IF(K6>N6,K6-N6,0)+Q6","v":0}]
[null,"B",{"$f":"Fragebogen!C103","v":0},null,{"$f":"Fragebogen!R103","v":"Nein"},{"$nulls":4},{"$f":"Fragebogen!R58","v":"Nein"},{"$f":"Fragebogen!P103","v":0},"-","-",{"$f":"Fragebogen!P108","v":0},{"$f":"Fragebogen!P109","v":0},{"$f":"IF(N7=0,Fragebogen!P112,'Zusammenfassung der Einzelfälle'!N7-'Zusammenfassung der Einzelfälle'!O7)","v":0},{"$f":"IF(J7=\"Ja\",P7,0)","v":0},{"$f":"K7-N7","v":0},"-","-","-","-","-",null,{"$f":"IF(K7>N7,P7,K7-O7)","v":0},null,{"$f":"IF(E7=\"Nein\",IF(K7>N7,K7-N7,0),0)","v":0},{"$f":"IF(E7=\"Ja\",IF(K7>N7,K7-N7,0),0)","v":0},null,{"$f":"IF(K7>N7,P7,K7-O7)-Q7","v":0},null,{"$f":"IF(K7>N7,K7-N7,0)+Q7","v":0}]
[]
["3b Überführung von land- und forstwirtschaftlichen Grundstücken ins Privatvermögen"]
[null,"A",{"$f":"Fragebogen!C116","v":0},{"$nulls":3},{"$f":"Fragebogen!R38","v":"Nein"},null,null,{"$f":"Fragebogen!R58","v":"Nein"},"-","-",{"$f":"Fragebogen!P116","v":0},{"$f":"Fragebogen!N122","v":0},{"$f":"Fragebogen!N123","v":0},{"$f":"IF(N10=0,Fragebogen!N126,'Zusammenfassung der Einzelfälle'!N10-'Zusammenfassung der Einzelfälle'!O10)","v":0},{"$f":"IF(J10=\"Ja\",P10,0)","v":0},"-","-","-","-","-","-",null,{"$f":"IF(G10=\"Nein\",P10,0)","v":0},{"$f":"IF(G10=\"Ja\",P10,0)","v":0},{"$nulls":3},{"$f":"P10-Q10","v":0},null,{"$f":"Q10","v":0}]
[null,"B",{"$f":"Fragebogen!C117","v":0},{"$nulls":6},{"$f":"Fragebogen!R58","v":"Nein"},"-","-",{"$f":"Fragebogen!P117","v":0},{"$f":"Fragebogen!P122","v":0},{"$f":"Fragebogen!P123","v":0},{"$f":"IF(N11=0,Fragebogen!P126,'Zusammenfassung der Einzelfälle'!N11-'Zusammenfassung der Einzelfälle'!O11)","v":0},{"$f":"IF(J11=\"Ja\",P11,0)","v":0},"-","-","-","-","-","-",null,{"$f":"P11","v":0},{"$nulls":4},{"$f":"P11-Q11","v":0},null,{"$f":"Q11","v":0}]
[]
["4. Ermittlung von Liquidationsgewinnen von nicht land- und forstwirtschaftlichen Grundstücken"]
["4a Veräusserung von nicht land- und forstwirtschaftlichen Grundstücken"]
[null,"A",{"$f":"Fragebogen!C135","v":0},{"$f":"Fragebogen!R135","v":"Nein"},{"$nulls":5},{"$f":"Fragebogen!R58","v":"Nein"},{"$f":"Fragebogen!P135","v":0},{"$f":"Fragebogen!N135","v":0},"-",{"$f":"Fragebogen!N141","v":0},{"$f":"Fragebogen!N142","v":0},{"$f":"IF(N15=0,Fragebogen!N145,'Zusammenfassung der Einzelfälle'!N15-'Zusammenfassung der Einzelfälle'!O15)","v":0},{"$f":"IF(J15=\"Ja\",P15+R15,0)","v":0},{"$f":"K15-N15","v":0},"-",{"$f":"IF(D15=\"Nein\",0,IF(L15-N15<0,0,L15-N15))","v":0},{"$f":"R15-T15","v":0},{"$f":"IF(L15-N15<0,0,L15-N15)","v":0},{"$f":"IF(J15=\"Nein\",R15,0)-V15","v":0},null,{"$f":"P15+U15","v":0},null,{"$f":"T15","v":0},null,null,{"$f":"P15+W15-IF(J15=\"Ja\",P15,0)","v":0},null,{"$f":"V15+Q15","v":0}]
[null,"B",{"$f":"Fragebogen!C136","v":0},{"$f":"Fragebogen!R136","v":"Nein"},{"$nulls":5},{"$f":"Fragebogen!R58","v":"Nein"},{"$f":"Fragebogen!P136","v":0},{"$f":"Fragebogen!N136","v":0},"-",{"$f":"Fragebogen!P141","v":0},{"$f":"Fragebogen!P142","v":0},{"$f":"IF(N16=0,Fragebogen!P145,'Zusammenfassung der Einzelfälle'!N16-'Zusammenfassung der Einzelfälle'!O16)","v":0},{"$f":"IF(J16=\"Ja\",P16+R16,0)","v":0},{"$f":"K16-N16","v":0},"-",{"$f":"IF(D16=\"Nein\",0,IF(L16-N16<0,0,L16-N16))","v":0},{"$f":"R16-T16","v":0},{"$f":"IF(L16-N16<0,0,L16-N16)","v":0},{"$f":"IF(J16=\"Nein\",R16,0)-V16","v":0},null,{"$f":"P16+U16","v":0},null,{"$f":"T16","v":0},null,null,{"$f":"P16+W16-IF(J16=\"Ja\",P16,0)","v":0},null,{"$f":"V16+Q16","v":0}]
[]
["4b Überführung von nicht land- und forstwirtschaftlichen Grundstücken ins Privatvermögen"]
[null,"A",{"$f":"Fragebogen!C149","v":0},{"$f":"Fragebogen!R149","v":"Nein"},null,{"$f":"Fragebogen!R162","v":"Nein"},{"$f":"Fragebogen!R38","v":"Nein"},null,null,{"$f":"Fragebogen!R58","v":"Nein"},"-",{"$f":"Fragebogen!N149","v":0},{"$f":"Fragebogen!P149","v":0},{"$f":"Fragebogen!N155","v":0},{"$f":"Fragebogen!N156","v":0},{"$f":"IF(N19=0,Fragebogen!N159,'Zusammenfassung der Einzelfälle'!N19-'Zusammenfassung der Einzelfälle'!O19)","v":0},{"$f":"IF(J19=\"Ja\",P19+R19,0)","v":0},{"$f":"M19-N19","v":0},"-",{"$f":"IF(D19=\"Nein\",0,IF(L19-N19<0,0,L19-N19))","v":0},{"$f":"R19-T19","v":0},{"$f":"IF(L19-N19<0,0,L19-N19)","v":0},{"$f":"IF(J19=\"Nein\",R19,0)-V19","v":0},null,{"$f":"IF(G19=\"Ja\",0,IF(F19=\"Nein\",P19+U19,P19))","v":0},{"$f":"IF(G19=\"Ja\",P19+U19,IF(F19=\"Ja\",U19,0))","v":0},{"$f":"T19","v":0},null,null,{"$f":"P19+W19-IF(F19=\"Ja\",W19,0)","v":0},{"$f":"IF(F19=\"Ja\",W19,0)","v":0},{"$f":"V19+Q19","v":0}]
[null,"B",{"$f":"Fragebogen!C150","v":0},{"$f":"Fragebogen!R150","v":"Nein"},null,{"$f":"Fragebogen!R162","v":"Nein"},{"$nulls":3},{"$f":"Fragebogen!R58","v":"Nein"},"-",{"$f":"Fragebogen!N150","v":0},{"$f":"Fragebogen!P150","v":0},{"$f":"Fragebogen!P155","v":0},{"$f":"Fragebogen!P156","v":0},{"$f":"IF(N20=0,Fragebogen!P159,'Zusammenfassung der Einzelfälle'!N20-'Zusammenfassung der Einzelfälle'!O20)","v":0},{"$f":"IF(J20=\"Ja\",P20+R20,0)","v":0},{"$f":"M20-N20","v":0},"-",{"$f":"IF(D20=\"Nein\",0,IF(L20-N20<0,0,L20-N20))","v":0},{"$f":"R20-T20","v":0},{"$f":"IF(L20-N20<0,0,L20-N20)","v":0},{"$f":"IF(J20=\"Nein\",R20,0)-V20","v":0},null,{"$f":"IF(F20=\"Nein\",P20+U20,P20)","v":0},{"$f":"IF(F20=\"Ja\",U20,0)","v":0},{"$f":"T20","v":0},null,null,{"$f":"P20+W20-IF(F20=\"Ja\",W20,0)","v":0},{"$f":"IF(F20=\"Ja\",W20,0)","v":0},{"$f":"V20+Q20","v":0}]
[]
[null,"übrige Liquidationsgewinne aus Verkauf oder Überführung Anlage-/Umlaufvermögen",{"$nulls":8},{"$f":"Fragebogen!N175+Fragebogen!N176+Fragebogen!N177","v":0},null,{"$f":"Fragebogen!N181+Fragebogen!N182","v":0},null,{"$f":"Fragebogen!N188+Fragebogen!N189+Fragebogen!N190","v":0},{"$nulls":9},{"$f":"K22-O22","v":0},{"$nulls":4},{"$f":"K22-O22","v":0}]
[null,"übrige Liquidationsgewinne aus der realisation stiller Reserven",{"$nulls":16},{"$f":"Fragebogen!N192+Fragebogen!N193+Fragebogen!N194","v":0},{"$nulls":5},{"$f":"S23","v":0},{"$nulls":4},{"$f":"S23","v":0}]
[]
[{"$nulls":10},{"$f":"SUM(K4:K24)","v":0},0,0,0,0,0,0,0,0,0,0,0,0,null,{"$f":"SUM(Y4:Y24)","v":0},{"$f":"SUM(Z4:Z24)","v":0},0,0,null,0,0,0]
["Gesamter Liquidationsgewinn wie Ziffer 5.5",null,null,{"$f":"Fragebogen!P195","v":0},{"$nulls":19},"nach Abzug AHV",{"$f":"Y25*(1-Fragebogen!$N$204)","v":0},{"$nulls":4},{"$f":"AD25*(1-Fragebogen!$N$204)","v":0}]
[null,null,"abzüglich Verkaufskosten",{"$nulls":11},{"$f":"-Fragebogen!N178","v":0},{"$nulls":12},{"$f":"-Fragebogen!N178","v":0},{"$nulls":3},{"$f":"-Fragebogen!N178","v":0}]
[null,null,{"$f":"IF(AND(O28=AB28,O28=AF28,AB28=AF28,O28=D26),\"Kontrolle i.o.\",\"Fehler in Berechnung\")","v":"Kontrolle i.o."},{"$nulls":10},"Kontrolle \"Einzelbetrachtung\"",{"$f":"K25+M25-O25+O27+S25","v":0},{"$nulls":11},"Kontrolle Staats- und Gemeindesteuer",{"$f":"SUM(Y25:AB25)+AB27","v":0},null,null,"Kontrolle DBSt",{"$f":"SUM(AD25:AF25)+AF27","v":0}]

{"sheet":"Aufschub Wertzuwachs","index":4,"n_rows":42,"n_cols":8,"rows_kept":42,"merged":[[12,2,12,3],[16,4,16,5],[16,6,16,7],[35,0,35,7],[36,0,36,7],[37,0,37,7]]}
["Abweichungsbegründung",null,{"$f":"IF(Fragebogen!P2=\"\",\"\",Fragebogen!P2)","v":""}]
[]
["Adr.-Nr.:",{"$f":"IF(Fragebogen!L4=\"\",\"\",Fragebogen!L4)","v":""}]
["Adresse:",{"$f":"IF(Fragebogen!H5=\"\",\"\",Fragebogen!H5)","v":""}]
[null,{"$f":"IF(Fragebogen!H6=\"\",\"\",Fragebogen!H6)","v":""}]
[null,{"$f":"IF(Fragebogen!H7=\"\",\"\",Fragebogen!H7)","v":""}]
[null,{"$f":"IF(Fragebogen!H8=\"\",\"\",Fragebogen!H8)","v":""}]
[null,{"$f":"IF(Fragebogen!H9=\"\",\"\",Fragebogen!H9)","v":""}]
[]
["Antrag auf Steueraufschub für den Wertzuwachs von Liegenschaften des Anlagevermögens"]
["(§ 32a StG; Art. 18a DBG)"]
[]
["Im Rahmen der Liquidation per",null,{"$f":"IF(Fragebogen!N49=\"\",\"\",Fragebogen!N49)","v":""},null,"stellten Sie den Antrag auf den Steueraufschub für "]
["den Wertzuchwachs von Liegenschaften des Anlagevermögens."]
[]
["Auf den folgenden Parzellen ist der Wertzuwachs aufgeschoben"]
[{"$nulls":4},"Parzelle",null,"Anlagekosten"]
["Gemeinde, evtl. Bezeichnung Parzelle",{"$nulls":3},"Nummer","Fläche m2","Kanton","Bund"]
{"$rows_empty":11}
[{"$nulls":5},"oder im Total",{"$f":"IF(SUM(G19:G28)=0,\"\",SUM(G19:G28))","v":""},{"$f":"IF(SUM(H19:H28)=0,\"\",SUM(H19:H28))","v":""}]
[]
["Datum",null,null,"Unterschrift Steuerpflichtige(r)"]
[]
[]
["§ 32a StG - Steueraufschubtatbestände"]
[]
[]
[]
[]
[]
["Art. 18a DBG - Aufschubtatbestände"]
["gleicher Wortlaut wie § 32a StG"]

{"sheet":"Gewinnarten","index":5,"n_rows":39,"n_cols":22,"rows_kept":39,"merged":[[4,13,4,14],[5,13,5,14],[10,13,10,14],[26,13,26,14],[26,19,26,20],[32,13,32,14],[32,19,32,20]]}
["Besteuerung von Liquidationsgewinnen in der Landwirtschaft"]
[]
[null,null,"Massgebliche Werte",{"$nulls":9},"Spezialfälle (z.B. Bauland)"]
[]
[null,null,"Verkehrs-","Wert-",{"$nulls":8},"Verkehrs-","Wert-"]
[null,null,"wert","zuwachs",{"$nulls":8},"wert","zuwachs"]
[null,null,"resp.","Anlage-","kum.",{"$nulls":7},"resp."]
[null,null,"Verkaufs-","kosten","Abschr.",{"$nulls":7},"Verkaufs-"]
[null,null,"preis",null,"Buch-",{"$nulls":7},"preis"]
[{"$nulls":4},"wert",{"$nulls":7},"VW BGBB"]
[{"$nulls":13},"Anlagekosten"]
[{"$nulls":15},"Buchwert"]
[]
[]
[null,null,"Veräusserung",{"$nulls":4},"Überführung ins Privatvermögen",{"$nulls":4},"Veräusserung",{"$nulls":5},"Überführung ins Privatvermögen"]
[]
["land- und",null,null,"GGSt"]
["forstwirtschaftliche"]
["Grundstücke",null,"Verkaufs-",null,"Einkommen",{"$nulls":4},"Einkommen1"]
["gemäss BGBB",null,"preis"]
[{"$nulls":3},"Anlage-",{"$nulls":4},"Anlage-"]
[{"$nulls":3},"kosten","Buch-",{"$nulls":3},"kosten","Buch-"]
[{"$nulls":4},"wert",{"$nulls":4},"wert"]
[]
[]
[]
[{"$nulls":3},"Einkommen",{"$nulls":4},"Einkommen2",{"$nulls":4},"Einkommen",{"$nulls":5},"Einkommen2"]
[{"$nulls":12},"Verkaufs-",{"$nulls":5},"Verkehrs-"]
["keine land- und",null,"Verkaufs-",null,"Einkommen",null,null,"Verkehrs-",null,"Einkommen",null,null,"preis",{"$nulls":5},"wert"]
["forstwirtschaftliche",null,"preis",{"$nulls":4},"wert"]
["Grundstücke",null,null,"Anlage-",{"$nulls":4},"Anlage-"]
[{"$nulls":3},"kosten","Buch-",{"$nulls":3},"kosten","Buch-",{"$nulls":3},"GGSt3","Eink.3",{"$nulls":4},"GGSt3","Eink.3"]
[{"$nulls":4},"wert",{"$nulls":4},"wert",null,null,"VW BGBB","Anlagekosten",null,"Einkommen",null,null,"VW BGBB","Anlagekosten",null,"Einkommen"]
[{"$nulls":15},"Buchwert",{"$nulls":5},"Buchwert"]
[]
[]
["1 Steueraufschub gemäss § 23 StG möglich (nur Kanton)"]
["2 Steueraufschub gemäss § 32a StG; Art 18a DBG möglich"]
["3 Direkte Bundessteuer: steuerfrei; Kantonssteuer: bei aktueller Einzonung Grundstückgewinnsteuer, sonst Einkommen"]